[Event "36th Belgrade Trophy 2023"]
[Site "Belgrade"]
[Date "2023.11.30"]
[Round "6.5"]
[White "Stojanovic, Mihajlo"]
[Black "Trailovic, Aleksandar"]
[Result "0-1"]
[ECO "D40"]
[WhiteElo "2490"]
[BlackElo "2132"]
[Annotator "TA"]
[PlyCount "92"]
[EventDate "2023.10.23"]
[EventType "swiss"]
[EventCountry "SRB"]
[SourceTitle "playchess.com"]
[Source "ChessBase"]
[SourceQuality "1"]
[TimeControl "40/5400+30:900+30"]

{[%evp 15,92,14,14,0,34,-5,16,10,0,0,33,25,22,25,39,31,31,-10,0,-15,-13,-230,-252,-251,-260,-333,-302,-306,-304,-395,-383,-383,-295,-466,-481,-474,-472,-459,-453,-458,-421,-388,-395,-611,-608,-604,-621,-680,-694,-697,-683,-664,-504,-483,-450,-29978,-29979,-29979,-29980,-12846,-12837,-12838,-12838,-12839,-12838,-12839,0,-12839,-12839,-12839,-12840,-12840,-12841,-12841,-12841,-12841,-12841,-12842,-12842]} 1. Nf3 {[%emt 0:00:04]} Nf6 {[%emt 1:31:00]} 2. c4 {[%emt 0:00:08]} e6 {[%emt 0:00:00]} 3. Nc3 {[%emt 0:02:46]} d5 {[%emt 0:00:00]} 4. d4 {[%emt 0:02:52]} c5 {[%emt 0:00:00]} 5. e3 {[%emt 1:27:10]} Nc6 {[%emt 0:00:00]} 6. a3 {[%emt 0:00:00]} dxc4 {[%emt 0:00:00]} 7. Bxc4 {[%emt 0:00:00]} a6 {[%emt 0:03:00]} 8. O-O {[%emt 0:00:00]} b5 {[%emt 0:00:30]} 9. Bd3 {[%emt 0:02:00] D40: Queen's Gambit Declined: Semi-Tarrasch with 5 e3.} Bb7 {[%emt 0:00:30][%cal Rc5d4]} 10. Ne4 {[%emt 0:00:00]} cxd4 {[%emt 0:00:00]} 11. exd4 {[%emt 0:00:00] The position is equal.} Nxe4 {[%emt 0:00:00]} 12. Bxe4 {[%emt 0:00:00]} Na5 {[%emt 0:01:30][%cal Bc6a5,Ba5b7,Bb7d6,Bd6f5][%mdl 32]} 13. Bxb7 {[%emt 0:02:00]} Nxb7 {[%emt 0:00:30] [#]} 14. a4 $146 {[%emt 0:00:30][%cal Od4d5]} ({Predecessor:} 14. Ne5 Qd5 15. Qg4 Nd6 16. Nd3 Qf5 17. Qg3 Qg6 18. d5 Qxg3 19. hxg3 exd5 20. Re1+ {1-0 Dai,C (2529)-Wu,Y (1972) China zt 3.5 2023 (9)}) 14... b4 {[%emt 0:00:30]} 15. Ne5 {[%emt 0:00:00] Hoping for Qf3.} Qd5 {[%emt 0:00:00]} 16. Qg4 {[%emt 0:01:00]} (16. a5 $5 {[%cal Rd1a4]}) 16... Nd6 {[%emt 0:01:00]} 17. Re1 {[%emt 0:00:00]} Nf5 {[%emt 0:00:00]} 18. Nxf7 $2 {[%emt 0:01:00] Black continues to play with concentration.} Kxf7 $19 {[%emt 0:00:00]} 19. Re5 {[%emt 0:00:30] [#]} Qc4 {[%emt 0:01:30]} (19... Qxd4 $2 20. Rxf5+ exf5 21. Qxd4 $18) 20. Bf4 {[%emt 0:00:30][%cal Od4d5]} h5 {[%emt 0:00:30]} (20... Nxd4 21. Rc1 Qa2 22. Bh6 (22. Be3 $2 Nf5 $19) 22... gxh6 23. Qxd4 $15) (20... Qxd4 21. Rxe6 g6 22. Rd1 $18) 21. Qf3 {[%emt 0:00:30]} Rd8 {[%emt 0:00:30]} ({Not} 21... Nxd4 22. Qxa8 Ne2+ 23. Kh1 (23. Rxe2 Qxe2 24. Rc1 h4 $16) 23... Nxf4 24. Qf3 $18) ({Stronger than} 21... Be7 22. Rc1 Qa2 23. d5 $15) 22. Be3 {[%emt 0:00:30]} Bd6 {[%emt 0:00:30]} 23. Rc1 {[%emt 0:00:00]} Qd3 {[%emt 0:00:00]} 24. Re4 {[%emt 0:01:00] [#]} (24. Qb7+ $142 Kg8 25. Rxe6) 24... g5 $1 {[%emt 0:00:00][%cal Bg7g5,Bg5g4,Bg4f3][%mdl 32] White must now prevent ...g4.} 25. Rd1 {[%emt 0:00:00] [#]} g4 $1 {[%emt 0:00:00][%mdl 64] Threatens to win with ...Qc2. Trapped Piece} 26. Rxd3 {[%emt 0:00:00]} gxf3 {[%emt 0:00:00]} 27. Bg5 {[%emt 0:00:00]} Rdg8 {[%emt 0:00:00]} 28. h4 {[%emt 0:02:00]} fxg2 {[%emt 0:00:00][%cal Of5h4] ...Nxh4! would be deadly.} 29. d5 {[%emt 0:00:30]} (29. Rf3 $142 Kg7 30. Re1) 29... e5 {[%emt 0:00:00]} 30. Rf3 {[%emt 0:00:00]} Kg6 {[%emt 0:00:00]} 31. Kxg2 {[%emt 0:01:00]} Rc8 {[%emt 0:00:00]} 32. Kh3 {[%emt 0:00:30]} Rhf8 {[%emt 0:00:00]} 33. Bd2 {[%emt 0:00:00]} Rc2 {[%emt 0:00:00]} 34. Bxb4 {[%emt 0:00:00]} Rxb2 {[%emt 0:00:03]} 35. Rxf5 {[%emt 0:01:30]} (35. Bxd6 $19 Nxd6 {[%mdl 64] Discovered Attack} 36. Rxf8 Nxe4 37. f4 Rb3+ 38. Kh2 exf4 39. Rxf4) 35... Kxf5 {[%emt 0:00:38]} 36. Bxd6 {[%emt 0:00:30]} Kxe4 {[%emt 0:06:19]} 37. Bxf8 {[%emt 0:00:30] KR-KB} Rb3+ {[%emt 0:00:30]} 38. Kg2 {[%emt 0:00:00]} Kxd5 {[%emt 0:00:00]} 39. Be7 {[%emt 0:00:00]} Ke4 {[%emt 0:00:00]} 40. Bd6 {[%emt 0:00:00]} Kd5 {[%emt 0:00:00]} 41. Be7 {[%emt 0:00:00]} e4 {[%emt 0:17:00] Black is clearly winning.} 42. a5 {[%emt 0:00:00]} Ke6 {[%emt 0:00:00]} 43. Bg5 {[%emt 0:18:00]} Kf5 {[%emt 0:00:00]} 44. Bd2 {[%emt 0:00:00]} Rd3 {[%emt 0:00:00]} 45. Bb4 {[%emt 0:00:00]} Kg4 {[%emt 0:00:00]} 46. Be1 {[%emt 0:00:00]} Rd1 {[%emt 0:00:00] Weighted Error Value: White=0.51/Black=0.25 (precise)} 0-1

[Event "36th Belgrade Trophy 2023"]
[Site "Belgrade"]
[Date "2023.11.30"]
[Round "6.6"]
[White "Mezentsev, Ivan"]
[Black "Stanojevic, Ilija"]
[Result "0-1"]
[ECO "D46"]
[WhiteElo "2362"]
[BlackElo "2117"]
[Annotator "RC"]
[PlyCount "78"]
[EventDate "2023.10.23"]
[EventType "swiss"]
[EventCountry "SRB"]
[SourceTitle "playchess.com"]
[Source "ChessBase"]
[SourceQuality "1"]
[TimeControl "40/5400+30:900+30"]

1. Nf3 {[%emt 0:00:09]} Nf6 {[%emt 0:00:59]} 2. c4 {[%emt 0:01:50]} e6 {[%emt 0:05:25]} 3. Nc3 {[%emt 0:01:41]} d5 {[%emt 0:00:32]} 4. e3 {[%emt 0:01:01]} c6 {[%emt 0:04:57]} 5. b3 {[%emt 0:03:13]} Bd6 {[%emt 0:02:32]} 6. Bb2 {[%emt 0:01:26]} Nbd7 {[%emt 0:02:48]} 7. d4 {[%emt 0:00:40]} O-O {[%emt 0:08:23]} 8. Bd3 {[%emt 0:02:50]} b6 {[%emt 0:07:11]} 9. O-O {[%emt 0:07:35]} Ba6 {[%emt 0:03:55]} 10. Qc2 {[%emt 0:07:33]} Re8 {[%emt 0:03:35]} 11. e4 {[%emt 0:04:08]} dxc4 {[%emt 0:02:25]} 12. bxc4 {[%emt 0:04:11]} e5 {[%emt 0:00:36]} 13. d5 {[%emt 0:14:31]} Rc8 {[%emt 0:04:35]} 14. Rfd1 {[%emt 0:07:06]} Nc5 {[%emt 0:03:40]} 15. Be2 {[%emt 0:01:29]} Qc7 {[%emt 0:06:42]} 16. Rac1 {[%emt 0:03:09]} Qb7 {[%emt 0:03:20]} 17. Nh4 {[%emt 0:36:28]} Bf8 {[%emt 0:09:43]} 18. Re1 {[%emt 0:00:00]} g6 {[%emt 0:04:29]} 19. Rcd1 {[%emt 0:00:00]} cxd5 {[%emt 0:04:19]} 20. exd5 {[%emt 0:00:00]} Ncd7 {[%emt 0:01:25]} 21. Ne4 {[%emt 0:00:00]} Bxc4 {[%emt 0:04:14]} 22. Bxc4 {[%emt 0:00:00]} b5 {[%emt 0:00:04]} 23. Nxf6+ {[%emt 0:00:00]} Nxf6 {[%emt 0:00:06]} 24. Rxe5 {[%emt 0:00:00]} Rxe5 {[%emt 0:04:16]} 25. Bxe5 {[%emt 0:00:00]} Rxc4 {[%emt 0:00:37]} 26. Qe2 {[%emt 0:00:00]} Re4 {[%emt 0:02:06]} 27. Qf3 {[%emt 0:01:56]} Rxe5 {[%emt 0:00:45]} 28. Qxf6 {[%emt 0:00:05]} Qxd5 {[%emt 0:00:34]} 29. Rc1 {[%emt 0:00:43]} Qc4 {[%emt 0:05:28]} 30. Rf1 {[%emt 0:01:38]} Re6 {[%emt 0:00:21]} 31. Qd8 {[%emt 0:00:04]} Qxa2 {[%emt 0:03:16]} 32. Nf3 {[%emt 0:00:01]} h6 {[%emt 0:00:31]} 33. h4 {[%emt 0:00:19]} b4 {[%emt 0:00:40]} 34. Rc1 {[%emt 0:00:44]} b3 {[%emt 0:00:48]} 35. Rc8 {[%emt 0:00:08]} Qa3 {[%emt 0:00:12]} 36. Qd3 {[%emt 0:00:59]} Qb4 {[%emt 0:00:59]} 37. Rc4 {[%emt 0:00:59]} Qb6 {[%emt 0:00:32]} 38. Nd2 {[%emt 0:00:36]} Rd6 {[%emt 0:00:43]} 39. Qe2 {[%emt 0:00:13]} Rxd2 {[%emt 0:00:11]} 0-1

[Event "36th Belgrade Trophy 2023"]
[Site "Belgrade"]
[Date "2023.11.30"]
[Round "6.7"]
[White "Enkhnar, Enkhbaatar"]
[Black "Eric, Jovana"]
[Result "1-0"]
[ECO "D78"]
[WhiteElo "2327"]
[BlackElo "2112"]
[Annotator "RC"]
[PlyCount "111"]
[EventDate "2023.10.23"]
[EventType "swiss"]
[EventCountry "SRB"]
[SourceTitle "playchess.com"]
[Source "ChessBase"]
[SourceQuality "1"]
[TimeControl "40/5400+30:900+30"]

1. Nf3 {[%emt 0:00:31]} d5 {[%emt 0:00:14]} 2. d4 {[%emt 0:00:09]} Nf6 {[%emt 0:00:13]} 3. g3 {[%emt 0:01:59]} c6 {[%emt 0:00:32]} 4. c4 {[%emt 0:00:40]} g6 {[%emt 0:00:52]} 5. Bg2 {[%emt 0:00:06]} Bg7 {[%emt 0:00:14]} 6. O-O {[%emt 0:00:05]} O-O {[%emt 0:00:05]} 7. Qa4 {[%emt 0:00:11]} Bf5 {[%emt 0:05:47]} 8. Nh4 {[%emt 0:04:41]} Be6 {[%emt 0:01:11]} 9. c5 {[%emt 0:03:24]} Qc8 {[%emt 0:08:20]} 10. Rd1 {[%emt 0:01:27]} Bh3 {[%emt 0:01:56]} 11. Bh1 {[%emt 0:00:13]} Nbd7 {[%emt 0:01:35]} 12. Nc3 {[%emt 0:12:35]} e5 {[%emt 0:02:15]} 13. dxe5 {[%emt 0:00:26]} Nxe5 {[%emt 0:00:44]} 14. Bf4 {[%emt 0:03:23]} Re8 {[%emt 0:02:35]} 15. Rac1 {[%emt 0:00:34]} h6 {[%emt 0:05:28]} 16. Bxe5 {[%emt 0:11:09]} Rxe5 {[%emt 0:00:07]} 17. b4 {[%emt 0:00:08]} Ne4 {[%emt 0:09:57]} 18. Nxe4 {[%emt 0:11:59]} dxe4 {[%emt 0:00:25]} 19. Rc4 {[%emt 0:01:14]} Qe6 {[%emt 0:04:38]} 20. Rcd4 {[%emt 0:03:16]} g5 {[%emt 0:03:18]} 21. Ng2 {[%emt 0:02:37]} Rd5 {[%emt 0:04:06]} 22. Rxd5 {[%emt 0:07:12]} cxd5 {[%emt 0:00:06]} 23. Qb3 {[%emt 0:01:15]} d4 {[%emt 0:02:47]} 24. Qxe6 {[%emt 0:02:04]} Bxe6 {[%emt 0:00:06]} 25. Ne1 {[%emt 0:00:08]} f5 {[%emt 0:02:26]} 26. f3 {[%emt 0:01:24]} Bd5 {[%emt 0:18:57]} 27. fxe4 {[%emt 0:00:28]} Bxe4 {[%emt 0:02:11]} 28. Nd3 {[%emt 0:00:45]} Re8 {[%emt 0:00:31]} 29. Kf2 {[%emt 0:01:50]} Kf7 {[%emt 0:01:19]} 30. Rc1 {[%emt 0:01:21]} Rc8 {[%emt 0:02:34]} 31. h3 {[%emt 0:02:22]} Ke6 {[%emt 0:00:57]} 32. g4 {[%emt 0:01:00]} Rf8 {[%emt 0:00:18]} 33. Kg3 {[%emt 0:03:57]} f4+ {[%emt 0:04:13]} 34. Kf2 {[%emt 0:00:16]} f3 {[%emt 0:00:28]} 35. Ke1 {[%emt 0:05:06]} Bd5 {[%emt 0:02:14]} 36. b5 {[%emt 0:01:50]} fxe2 {[%emt 0:11:58]} 37. Kxe2 {[%emt 0:00:32]} Bxh1 {[%emt 0:00:27]} 38. Rxh1 {[%emt 0:00:06]} Kd5 {[%emt 0:00:09]} 39. Rc1 {[%emt 0:00:33]} Rc8 {[%emt 0:01:13]} 40. Rf1 {[%emt 0:00:00]} Re8+ {[%emt 0:00:00]} 41. Kd2 {[%emt 0:04:16]} Rf8 {[%emt 0:04:24]} 42. Rc1 {[%emt 0:00:49]} Rc8 {[%emt 0:03:54]} 43. Nb4+ {[%emt 0:04:37]} Ke6 {[%emt 0:00:21]} 44. Kd3 {[%emt 0:05:00]} Kd7 {[%emt 0:03:49]} 45. Rf1 {[%emt 0:07:28]} Ke6 {[%emt 0:01:42]} 46. Re1+ {[%emt 0:00:34]} Kf7 {[%emt 0:02:36]} 47. c6 {[%emt 0:00:47]} bxc6 {[%emt 0:00:06]} 48. Nxc6 {[%emt 0:00:05]} Rc7 {[%emt 0:02:02]} 49. a4 {[%emt 0:00:12]} Bf6 {[%emt 0:01:38]} 50. a5 {[%emt 0:01:00]} a6 {[%emt 0:00:53]} 51. Rc1 {[%emt 0:00:25]} axb5 {[%emt 0:00:35]} 52. a6 {[%emt 0:00:06]} Ke8 {[%emt 0:00:56]} 53. a7 {[%emt 0:00:21]} Rc8 {[%emt 0:00:34]} 54. Rb1 {[%emt 0:02:20]} Ra8 {[%emt 0:00:57]} 55. Rxb5 {[%emt 0:00:09]} Kd7 {[%emt 0:00:25]} 56. Rb8 {[%emt 0:00:06]} 1-0

[Event "36th Belgrade Trophy 2023"]
[Site "Belgrade"]
[Date "2023.11.30"]
[Round "6.8"]
[White "Martic, Ivan"]
[Black "Pavlovic, Luka"]
[Result "1-0"]
[ECO "B22"]
[WhiteElo "2292"]
[BlackElo "2098"]
[Annotator "RC"]
[PlyCount "101"]
[EventDate "2023.10.23"]
[EventType "swiss"]
[EventCountry "SRB"]
[SourceTitle "playchess.com"]
[Source "ChessBase"]
[SourceQuality "1"]
[TimeControl "40/5400+30:900+30"]

1. e4 {[%emt 0:10:45]} c5 {[%emt 0:00:07]} 2. c3 {[%emt 0:00:07]} d5 {[%emt 0:00:23]} 3. exd5 {[%emt 0:00:07]} Qxd5 {[%emt 0:00:07]} 4. d4 {[%emt 0:00:05]} e6 {[%emt 0:08:14]} 5. Nf3 {[%emt 0:00:18]} Nf6 {[%emt 0:00:57]} 6. Na3 {[%emt 0:01:29]} cxd4 {[%emt 0:03:47]} 7. Nb5 {[%emt 0:00:40]} Na6 {[%emt 0:03:38]} 8. Nbxd4 {[%emt 0:10:38]} Bc5 {[%emt 0:05:11]} 9. Be2 {[%emt 0:06:24]} O-O {[%emt 0:13:01]} 10. O-O {[%emt 0:01:18]} Rd8 {[%emt 0:03:22]} 11. Qc2 {[%emt 0:05:56]} e5 {[%emt 0:09:35]} 12. Nb3 {[%emt 0:02:40]} Bg4 {[%emt 0:02:38]} 13. Rd1 {[%emt 0:07:00]} Qe4 {[%emt 0:01:25]} 14. Qxe4 {[%emt 0:01:02]} Rxd1+ {[%emt 0:01:42]} 15. Bxd1 {[%emt 0:00:06]} Nxe4 {[%emt 0:00:08]} 16. Nxc5 {[%emt 0:02:33]} Nexc5 {[%emt 0:04:31]} 17. h3 {[%emt 0:05:20]} Bxf3 {[%emt 0:06:16]} 18. Bxf3 {[%emt 0:01:06]} e4 {[%emt 0:02:52]} 19. Be2 {[%emt 0:00:12]} Nd3 {[%emt 0:02:51]} 20. Be3 {[%emt 0:08:14]} Nac5 {[%emt 0:02:18]} 21. f3 {[%emt 0:01:27]} f5 {[%emt 0:00:46]} 22. fxe4 {[%emt 0:00:15]} fxe4 {[%emt 0:01:39]} 23. Rd1 {[%emt 0:02:25]} Na4 {[%emt 0:03:55]} 24. Bxd3 {[%emt 0:01:06]} exd3 {[%emt 0:00:34]} 25. Rxd3 {[%emt 0:00:23]} Re8 {[%emt 0:07:50]} 26. Bxa7 {[%emt 0:03:16]} Ra8 {[%emt 0:08:33]} 27. Bf2 {[%emt 0:00:52]} Nxb2 {[%emt 0:01:18]} 28. Rd7 {[%emt 0:00:15]} h6 {[%emt 0:05:12]} 29. Bd4 {[%emt 0:03:38]} g5 {[%emt 0:00:14]} 30. Rg7+ {[%emt 0:02:35]} Kf8 {[%emt 0:00:04]} 31. Rxb7 {[%emt 0:00:11]} Rxa2 {[%emt 0:00:22]} 32. Bg7+ {[%emt 0:01:26]} Ke8 {[%emt 0:00:18]} 33. Bxh6 {[%emt 0:01:45]} g4 {[%emt 0:00:08]} 34. hxg4 {[%emt 0:01:43]} Nd1 {[%emt 0:00:55]} 35. c4 {[%emt 0:09:32]} Rc2 {[%emt 0:01:15]} 36. Rc7 {[%emt 0:02:54]} Nc3 {[%emt 0:01:15]} 37. Kh2 {[%emt 0:03:46]} Nd5 {[%emt 0:00:41]} 38. Rc5 {[%emt 0:01:09]} Nb6 {[%emt 0:00:28]} 39. Re5+ {[%emt 0:00:25]} Kf7 {[%emt 0:00:30]} 40. c5 {[%emt 0:00:00]} Nd7 {[%emt 0:00:00]} 41. Rf5+ {[%emt 0:03:59]} Ke6 {[%emt 0:02:56]} 42. Be3 {[%emt 0:02:21]} Ne5 {[%emt 0:00:56]} 43. Rf4 {[%emt 0:01:48]} Nd7 {[%emt 0:02:55]} 44. g5 {[%emt 0:07:56]} Nxc5 {[%emt 0:03:11]} 45. Rf6+ {[%emt 0:01:26]} Kd7 {[%emt 0:00:26]} 46. g6 {[%emt 0:01:18]} Ne6 {[%emt 0:03:35]} 47. g7 {[%emt 0:00:36]} Rc8 {[%emt 0:00:53]} 48. Bh6 {[%emt 0:00:18]} Rg8 {[%emt 0:01:33]} 49. Rf8 {[%emt 0:00:15]} Rxg7 {[%emt 0:00:11]} 50. Bxg7 {[%emt 0:00:11]} Nxg7 {[%emt 0:00:08]} 51. Rf7+ {[%emt 0:00:03]} 1-0

[Event "36th Belgrade Trophy 2023"]
[Site "Belgrade"]
[Date "2023.11.30"]
[Round "6.9"]
[White "Sovetbekova, Nurai"]
[Black "Liu, Zexu"]
[Result "0-1"]
[ECO "E13"]
[WhiteElo "1801"]
[BlackElo "2286"]
[Annotator "RC"]
[PlyCount "84"]
[EventDate "2023.10.23"]
[EventType "swiss"]
[EventCountry "SRB"]
[SourceTitle "playchess.com"]
[Source "ChessBase"]
[SourceQuality "1"]
[TimeControl "40/5400+30:900+30"]

1. d4 {[%emt 0:00:03]} b6 {[%emt 0:00:03]} 2. c4 {[%emt 0:00:48]} e6 {[%emt 0:00:05]} 3. Nf3 {[%emt 0:07:25]} Nf6 {[%emt 0:01:14]} 4. Bg5 {[%emt 0:02:24]} Bb7 {[%emt 0:02:06]} 5. e3 {[%emt 0:02:42]} h6 {[%emt 0:00:55]} 6. Bh4 {[%emt 0:00:34]} Bb4+ {[%emt 0:00:23]} 7. Nc3 {[%emt 0:02:48]} g5 {[%emt 0:02:41]} 8. Bg3 {[%emt 0:00:22]} Ne4 {[%emt 0:00:01]} 9. Qc2 {[%emt 0:02:03]} f5 {[%emt 0:00:06]} 10. a3 {[%emt 1:16:21]} Bxc3+ {[%emt 0:00:49]} 11. bxc3 {[%emt 0:00:00]} d6 {[%emt 1:27:37]} 12. h4 {[%emt 0:01:00]} Qf6 {[%emt 0:00:30]} 13. Nd2 {[%emt 0:00:30]} Nxg3 {[%emt 0:00:00]} 14. fxg3 {[%emt 0:00:30]} Nd7 {[%emt 0:00:00]} 15. e4 {[%emt 0:00:30]} gxh4 {[%emt 0:00:00]} 16. gxh4 {[%emt 0:00:30]} fxe4 {[%emt 0:00:00]} 17. Nxe4 {[%emt 0:00:00]} Qf4 {[%emt 0:00:00]} 18. Bd3 {[%emt 0:00:00]} Rg8 {[%emt 0:03:00]} 19. Qe2 {[%emt 0:01:30]} O-O-O {[%emt 0:00:30]} 20. g3 {[%emt 0:00:30]} Qf8 {[%emt 0:00:30]} 21. Rf1 {[%emt 0:00:30]} Qg7 {[%emt 0:00:30]} 22. O-O-O {[%emt 0:00:00]} d5 {[%emt 0:00:30]} 23. Nf2 {[%emt 0:00:00]} Qxg3 {[%emt 0:00:00]} 24. Qxe6 {[%emt 0:00:00]} Rde8 {[%emt 0:00:00]} 25. Qh3 {[%emt 0:02:00]} Qd6 {[%emt 0:01:30]} 26. Kb2 {[%emt 0:00:00]} dxc4 {[%emt 0:00:30]} 27. Bxc4 {[%emt 0:00:00]} Bg2 {[%emt 0:00:00]} 28. Qf5 {[%emt 0:01:30]} Rgf8 {[%emt 0:00:00]} 29. Ba6+ {[%emt 0:00:30]} Kd8 {[%emt 0:00:00]} 30. Qc2 {[%emt 0:00:00]} Bxf1 {[%emt 0:00:00]} 31. Bxf1 {[%emt 0:01:00]} Qg3 {[%emt 0:00:00]} 32. Nd3 {[%emt 0:00:30]} Re3 {[%emt 0:00:00]} 33. Bg2 {[%emt 0:00:30]} Qxh4 {[%emt 0:00:00]} 34. Rd2 {[%emt 0:00:30]} a5 {[%emt 0:00:00]} 35. Ne5 {[%emt 0:00:00]} Nxe5 {[%emt 0:00:00]} 36. dxe5+ {[%emt 0:00:00]} Kc8 {[%emt 0:05:00]} 37. Qg6 {[%emt 0:01:30]} Qc4 {[%emt 0:00:00]} 38. Qc2 {[%emt 0:00:00]} Rxe5 {[%emt 0:00:00]} 39. Qh7 {[%emt 0:00:24]} Rb5+ {[%emt 0:00:00]} 40. Kc2 {[%emt 0:00:00]} Qb3+ {[%emt 0:02:00]} 41. Kd3 {[%emt 0:01:41]} Rd8+ {[%emt 0:00:00]} 42. Ke2 {[%emt 0:00:26]} Rxd2+ {[%emt 0:00:00]} 0-1

[Event "36th Belgrade Trophy 2023"]
[Site "Belgrade"]
[Date "2023.11.30"]
[Round "6.10"]
[White "Alimov, Fedor"]
[Black "Savic, Mihailo S"]
[Result "0-1"]
[ECO "E12"]
[WhiteElo "1467"]
[BlackElo "2157"]
[Annotator "RC"]
[PlyCount "88"]
[EventDate "2023.10.23"]
[EventType "swiss"]
[EventCountry "SRB"]
[SourceTitle "playchess.com"]
[Source "ChessBase"]
[SourceQuality "1"]
[TimeControl "40/5400+30:900+30"]

1. d4 {[%emt 1:31:00]} e6 {[%emt 0:08:18]} 2. Bf4 f5 {[%emt 1:23:12]} 3. Nf3 {[%emt 0:01:00]} Nf6 {[%emt 0:00:30]} 4. h3 {[%emt 0:00:30]} Be7 {[%emt 0:00:30]} 5. e3 {[%emt 0:00:30]} b6 {[%emt 0:00:30]} 6. Bd3 {[%emt 0:00:30]} Bb7 {[%emt 0:00:30]} 7. O-O {[%emt 0:00:30]} O-O {[%emt 0:00:00]} 8. c4 Ne4 {[%emt 0:00:00]} 9. Nbd2 d6 {[%emt 0:01:30]} 10. Qc2 {[%emt 0:01:30]} Nxd2 {[%emt 0:00:30]} 11. Nxd2 {[%emt 0:00:30]} Nd7 {[%emt 0:00:00]} 12. Bh2 {[%emt 0:00:00]} g6 {[%emt 0:00:00]} 13. f4 {[%emt 0:01:00]} Bf6 {[%emt 0:01:30]} 14. Nf3 {[%emt 0:00:30]} c5 {[%emt 0:00:30]} 15. e4 {[%emt 0:00:30]} cxd4 {[%emt 0:00:00]} 16. exf5 {[%emt 0:00:00]} exf5 {[%emt 0:00:00]} 17. b4 a5 {[%emt 0:01:30]} 18. a3 {[%emt 0:01:30]} Bxf3 {[%emt 0:00:30]} 19. gxf3 {[%emt 0:00:30]} Re8 {[%emt 0:00:30]} 20. Kg2 {[%emt 0:00:30]} Qe7 {[%emt 0:00:30]} 21. Bg1 {[%emt 0:00:30]} Nf8 {[%emt 0:00:30]} 22. Qd2 {[%emt 0:00:30]} Qg7 {[%emt 0:00:30]} 23. Rfe1 {[%emt 0:00:30]} Rxe1 {[%emt 0:00:30]} 24. Qxe1 {[%emt 0:00:30]} Qa7 {[%emt 0:00:30]} 25. Rd1 {[%emt 0:00:30]} axb4 {[%emt 0:00:30]} 26. axb4 {[%emt 0:00:30]} Qa2+ {[%emt 0:00:00]} 27. Kh1 Qb3 {[%emt 0:01:00]} 28. Bf1 {[%emt 0:01:00]} Ra2 {[%emt 0:00:00]} 29. Rd3 Qb2 {[%emt 0:01:00]} 30. Rd1 {[%emt 0:01:00]} Kg7 {[%emt 0:00:00]} 31. Rb1 Qc2 {[%emt 0:01:00]} 32. Rc1 {[%emt 0:01:00]} Qb3 {[%emt 0:00:00]} 33. Qd1 Qb2 {[%emt 0:00:00]} 34. c5 dxc5 {[%emt 0:01:30]} 35. bxc5 {[%emt 0:01:30]} bxc5 {[%emt 0:00:30]} 36. Rxc5 {[%emt 0:00:30]} Ra1 {[%emt 0:00:00]} 37. Qd3 Ne6 {[%emt 0:01:00]} 38. Rb5 {[%emt 0:01:00]} Qc1 {[%emt 0:00:00]} 39. Rb7+ {[%emt 0:00:00]} Kh6 {[%emt 0:01:00]} 40. Rf7 {[%emt 0:01:00]} Nxf4 {[%emt 0:00:30]} 41. Qc4 {[%emt 0:15:30]} Qxf1 {[%emt 0:15:30]} 42. Qxf1 {[%emt 0:00:00]} Rxf1 {[%emt 0:00:30]} 43. Rxf6 {[%emt 0:01:00]} d3 {[%emt 0:00:00]} 44. Rd6 {[%emt 0:00:00]} Ne2 {[%emt 0:00:00]} 0-1

[Event "36th Belgrade Trophy 2023"]
[Site "Belgrade"]
[Date "2023.11.30"]
[Round "6.11"]
[White "Savic, Nemanja"]
[Black "Zmijanac, Dusko"]
[Result "1-0"]
[ECO "B22"]
[WhiteElo "2136"]
[BlackElo "1938"]
[Annotator "NA RC"]
[PlyCount "123"]
[EventDate "2023.10.23"]
[EventType "swiss"]
[EventCountry "SRB"]
[SourceTitle "playchess.com"]
[Source "ChessBase"]
[SourceQuality "1"]
[TimeControl "40/5400+30:900+30"]

1. e4 {[%emt 1:31:00]} c5 {[%emt 1:31:00]} 2. Nf3 {[%emt 0:00:30]} e6 {[%emt 0:00:30]} 3. c3 {[%emt 0:00:30]} a6 {[%emt 0:00:30]} 4. d4 {[%emt 0:00:30]} d5 {[%emt 0:00:30]} 5. exd5 {[%emt 0:00:00]} exd5 {[%emt 0:00:30]} 6. Bd3 {[%emt 0:01:00]} c4 {[%emt 0:00:30]} 7. Bc2 {[%emt 0:00:00]} Bd6 {[%emt 0:00:30]} 8. O-O {[%emt 0:01:00]} Ne7 {[%emt 0:00:30]} 9. Re1 {[%emt 0:00:30]} Bg4 {[%emt 0:00:30]} 10. b3 {[%emt 0:00:30]} cxb3 {[%emt 0:00:30]} 11. axb3 {[%emt 0:00:30]} Qc7 {[%emt 0:00:30]} 12. h3 {[%emt 0:00:30]} Bh5 {[%emt 0:00:30]} 13. Bb2 {[%emt 0:00:30]} Nd7 {[%emt 0:00:30]} 14. Nbd2 {[%emt 0:00:30]} Nf6 {[%emt 0:00:30]} 15. Qc1 {[%emt 0:00:30]} O-O {[%emt 0:00:30]} 16. c4 {[%emt 0:00:30]} Bb4 {[%emt 0:00:30]} 17. Ba3 {[%emt 0:00:30]} Nc6 {[%emt 0:00:30]} 18. Bxb4 {[%emt 0:00:30]} Nxb4 {[%emt 0:00:00]} 19. Ne5 Rfd8 {[%emt 0:01:00]} 20. g4 {[%emt 0:01:00]} Nxc2 {[%emt 0:00:30]} 21. Qxc2 {[%emt 0:00:30]} Bg6 {[%emt 0:00:30]} 22. Qc3 {[%emt 0:00:30]} Rac8 {[%emt 0:00:00]} 23. c5 Ne4 {[%emt 0:01:00]} 24. Nxe4 {[%emt 0:00:00]} Bxe4 {[%emt 0:00:30]} 25. Nc4 {[%emt 0:01:30]} Qf4 {[%emt 0:00:30]} 26. Nb6 {[%emt 0:00:30]} Rc6 {[%emt 0:00:30]} 27. Qe3 {[%emt 0:00:30]} Qb8 {[%emt 0:00:30]} 28. Qg3 {[%emt 0:00:30]} Qxg3+ {[%emt 0:00:00]} 29. fxg3 {[%emt 0:00:30]} Re6 {[%emt 0:01:00]} 30. Re3 {[%emt 0:00:30]} f6 {[%emt 0:00:30]} 31. Rae1 {[%emt 0:00:30]} Kf7 {[%emt 0:00:30]} 32. Kf2 {[%emt 0:00:30]} Rde8 {[%emt 0:00:30]} 33. R1e2 {[%emt 0:00:30]} g6 {[%emt 0:00:30]} 34. b4 {[%emt 0:00:30]} R6e7 {[%emt 0:00:30]} 35. Na4 {[%emt 0:00:30]} Bd3 {[%emt 0:00:30]} 36. Rxe7+ {[%emt 0:00:00]} Rxe7 {[%emt 0:00:30]} 37. Rxe7+ {[%emt 0:00:00]} Kxe7 {[%emt 0:00:30]} 38. Nc3 {[%emt 0:00:13]} Ke6 39. h4 {[%emt 0:01:47]} h6 {[%emt 0:01:00]} 40. Ke3 {[%emt 0:00:30]} Bc4 {[%emt 0:00:30]} 41. Kf4 {[%emt 0:15:30]} g5+ {[%emt 0:00:00]} 42. Kf3 Bb3 {[%emt 0:16:00]} 43. Ke3 {[%emt 0:01:00]} Kd7 {[%emt 0:00:30]} 44. Kd2 {[%emt 0:00:30]} Kc6 {[%emt 0:00:30]} 45. Kc1 {[%emt 0:00:30]} Bc4 {[%emt 0:00:30]} 46. Kb2 {[%emt 0:00:30]} Kd7 {[%emt 0:00:30]} 47. Nd1 {[%emt 0:00:30]} Ke6 {[%emt 0:00:30]} 48. Ne3 {[%emt 0:00:30]} Bd3 {[%emt 0:00:30]} 49. Ka3 {[%emt 0:00:30]} Be2 {[%emt 0:00:30]} 50. Ka4 {[%emt 0:00:30]} h5 {[%emt 0:00:00]} 51. hxg5 fxg5 {[%emt 0:01:00]} 52. gxh5 {[%emt 0:00:00]} Bxh5 {[%emt 0:00:30]} 53. Ka5 {[%emt 0:01:30]} Be8 {[%emt 0:00:30]} 54. Kb6 {[%emt 0:00:30]} Bc6 {[%emt 0:00:30]} 55. Kc7 {[%emt 0:00:30]} g4 {[%emt 0:00:30]} 56. Nxg4 {[%emt 0:00:00]} Kf5 {[%emt 0:00:00]} 57. Nf2 Kg5 {[%emt 0:01:00]} 58. Nd3 {[%emt 0:01:30]} Kf5 {[%emt 0:00:30]} 59. Ne5 {[%emt 0:00:30]} Bb5 {[%emt 0:00:30]} 60. Kxb7 {[%emt 0:00:30]} Ke4 {[%emt 0:00:30]} 61. c6 {[%emt 0:00:30]} Kxd4 {[%emt 0:00:30]} 62. c7 {[%emt 0:00:30]} 1-0